bitfinex/quotes_SOLUSD_20250821
["timestamp","ask_amount","ask_price","bid_price","bid_amount"]
[1755782028436,8.63216261,184.76,184.72,79.8]
[1755782028640,3.64148714,184.75,184.72,79.8]
[1755782028939,8.63216261,184.75,184.72,79.8]
[1755782029138,4.99067547,184.74,184.72,79.8]
[1755782029945,8.63216261,184.74,184.72,79.8]
[1755782030145,3.64148714,184.73,184.72,79.8]
[1755782030338,8.63216261,184.74,184.71,79.83]
[1755782030849,4.99067547,184.74,184.71,79.83]
[1755782031143,3.64148714,184.73,184.71,79.83]
[1755782032050,8.63216261,184.72,184.71,0.03]
[1755782032251,13.59559401,184.73,184.71,0.03]
[1755782032429,3.64148714,184.72,184.71,0.03]
[1755782032830,17.23708115,184.72,184.71,0.03]
[1755782034138,3.64148714,184.72,184.71,0.03]
[1755782034348,17.23708115,184.73,184.71,0.03]
[1755782034555,3.64148714,184.72,184.71,0.03]
[1755782035267,22.22775662,184.72,184.71,0.03]
[1755782035731,25.05253304,184.72,184.71,0.03]
[1755782038357,3.64148714,184.72,184.71,0.03]
[1755782039356,3.64148714,184.72,184.71,5.02067547]
[1755782039572,3.64148714,184.73,184.71,5.02067547]
[1755782039778,13.59559401,184.75,184.72,4.99067547]
[1755782039950,3.64148714,184.74,184.71,0.03]
[1755782040157,3.64148714,184.73,184.71,0.03]
[1755782040456,3.64148714,184.72,184.71,0.03]
[1755782042383,3.64148714,184.74,184.71,5.02067547]
[1755782042679,3.64148714,184.73,184.72,4.99067547]
[1755782043260,3.64148714,184.75,184.72,4.99067547]
[1755782043464,3.64148714,184.74,184.71,0.03]
[1755782043657,3.64148714,184.76,184.73,4.99067547]
[1755782043982,3.64148714,184.75,184.74,4.99067547]
[1755782044181,3.64148714,184.76,184.71,0.03]
[1755782044359,3.64148714,184.75,184.71,0.03]
[1755782044559,3.64148714,184.76,184.71,0.03]
[1755782044762,3.64148714,184.75,184.71,0.03]
[1755782044966,3.64148714,184.76,184.71,0.03]
[1755782045289,3.64148714,184.76,184.74,4.99067547]
[1755782047468,3.64148714,184.76,184.75,4.99067547]
[1755782048269,3.70148714,184.77,184.75,4.99067547]
[1755782048475,3.70148714,184.77,184.76,4.99067547]
[1755782048927,0.06,184.77,184.76,4.99067547]
[1755782050099,3.20148714,184.77,184.75,79.8]
[1755782050510,4.99067547,184.76,184.71,0.03]
[1755782050675,4.99067547,184.75,184.71,0.03]
[1755782050997,4.99067547,184.74,184.71,0.03]
[1755782051298,4.99067547,184.72,184.71,0.03]
[1755782051462,4.53763218,184.76,184.71,0.03]
[1755782051669,4.99067547,184.72,184.71,0.03]
[1755782051996,18.58626948,184.72,184.71,0.03]
[1755782054604,27.17570174,184.72,184.71,0.03]
[1755782054805,4.99067547,184.71,184.7,0.03]
[1755782055107,55.96154096,184.71,184.7,0.03]
[1755782055608,61.375433,184.71,184.7,0.03]
[1755782056277,74.97102701,184.71,184.7,0.03]
[1755782056509,96.4119616,184.71,184.7,0.03]
[1755782056778,96.4119616,184.71,184.69,0.03]
[1755782056779,13.59559401,184.7,184.69,0.03]
[1755782057006,27.62874503,184.7,184.69,0.03]
[1755782057390,33.68869888,184.7,184.69,0.03]
[1755782057779,39.10288404,184.7,184.69,0.03]
[1755782058320,39.59559401,184.67,184.6,0.1]
[1755782058615,97.09077448,184.67,184.6,0.1]
[1755782058817,13.59559401,184.62,184.6,0.1]
[1755782059000,18.58626948,184.61,184.6,0.1]
[1755782059323,13.59559401,184.64,184.6,0.1]
[1755782059495,4.99067547,184.64,184.6,0.1]
[1755782059822,18.58626948,184.65,184.6,5.09067547]
[1755782060382,18.58626948,184.65,184.6,0.1]
[1755782060611,4.99067547,184.64,184.6,0.1]
[1755782060819,18.58626948,184.65,184.6,5.09067547]
[1755782060998,13.59559401,184.65,184.6,5.09067547]
[1755782061198,18.58626948,184.65,184.6,5.09067547]
[1755782061427,13.59559401,184.65,184.61,4.99067547]
[1755782062800,18.58626948,184.65,184.6,5.09067547]
[1755782063426,4.99067547,184.64,184.6,0.1]
[1755782064201,4.99067547,184.63,184.6,0.1]
[1755782064428,13.59559401,184.65,184.6,0.1]
[1755782064651,4.99067547,184.65,184.6,0.1]
[1755782065298,4.99067547,184.63,184.6,0.1]
[1755782066203,4.99067547,184.61,184.6,0.1]
[1755782066896,18.58626948,184.61,184.6,0.1]
[1755782067098,22.22090966,184.61,184.6,0.1]
[1755782067302,18.58626948,184.61,184.6,0.1]
[1755782069424,21.41247891,184.61,184.6,0.1]
[1755782071811,25.04168652,184.61,184.6,0.1]
[1755782073423,30.45851117,184.61,184.6,0.1]
[1755782073723,63.79247891,184.61,184.6,0.1]
[1755782074405,2.82620943,184.61,184.6,0.1]
[1755782074595,4.99067547,184.62,184.6,0.1]
[1755782074596,13.59559401,184.62,184.6,0.1]
[1755782074798,7.81672435,184.64,184.6,0.1]
[1755782075000,13.59559401,184.63,184.6,0.1]
[1755782076866,2.82604888,184.64,184.6,0.1]
[1755782077364,4.99067547,184.7,184.63,4.99067547]
[1755782077529,13.59559401,184.69,184.65,4.99067547]
[1755782077736,21.41137701,184.69,184.64,4.99067547]
[1755782077933,21.41137701,184.69,184.6,0.1]
[1755782078133,21.41137701,184.69,184.64,4.99067547]
[1755782079136,13.59559401,184.67,184.63,4.99067547]
[1755782079564,18.58626948,184.67,184.61,30.99067547]
[1755782079751,21.83519607,184.69,184.61,26.0]
[1755782079946,4.99067547,184.65,184.61,26.0]
[1755782080142,18.58626948,184.64,184.61,26.0]
[1755782080360,13.59559401,184.64,184.61,26.0]
[1755782080574,13.59559401,184.64,184.61,4.99067547]
[1755782080859,13.59559401,184.65,184.61,4.99067547]
[1755782082239,4.99067547,184.65,184.6,5.09067547]
[1755782083465,18.58626948,184.66,184.6,0.1]
[1755782083778,18.58626948,184.66,184.61,4.99067547]
[1755782083946,13.59559401,184.66,184.62,4.99067547]
[1755782084353,18.58626948,184.66,184.61,4.99067547]
[1755782084551,18.58626948,184.66,184.61,84.79067547]
[1755782085446,13.59559401,184.66,184.61,84.79067547]
[1755782085647,18.58626948,184.66,184.61,84.79067547]
[1755782086245,42.38,184.67,184.63,4.99067547]
[1755782086464,13.59559401,184.68,184.64,4.99067547]
[1755782086638,18.58626948,184.68,184.64,0.68]
[1755782087059,19.30626948,184.68,184.64,0.68]
[1755782088254,19.36626948,184.68,184.64,0.68]
[1755782088643,0.06,184.68,184.65,0.68]
[1755782088885,0.06,184.68,184.65,80.48]
[1755782090346,0.06,184.68,184.65,85.47067547]
[1755782092367,0.06,184.68,184.65,80.48]
[1755782092564,0.72,184.67,184.65,79.8]
[1755782092967,18.64626948,184.68,184.65,79.8]
[1755782093169,13.65559401,184.68,184.65,79.8]
[1755782093687,19.36626948,184.68,184.64,79.8]
[1755782093872,19.36626948,184.68,184.64,80.48]
[1755782094098,14.37559401,184.68,184.64,85.47067547]
[1755782094288,3.63841741,184.67,184.65,0.68]
[1755782095302,3.63841741,184.67,184.64,84.79067547]
[1755782095677,3.63841741,184.67,184.64,85.47067547]
[1755782095877,3.63841741,184.67,184.64,79.8]
[1755782096080,4.35841741,184.67,184.64,79.8]
[1755782096702,9.34909288,184.67,184.64,79.8]
[1755782097807,19.30626948,184.66,184.64,79.8]
[1755782097975,13.59559401,184.64,184.62,0.03]
[1755782098182,17.24039276,184.63,184.62,0.03]
[1755782098811,3.64479875,184.63,184.62,0.71]
[1755782098985,3.64479875,184.64,184.62,5.70067547]
[1755782099184,3.64479875,184.64,184.63,0.68]
[1755782099413,2.82546267,184.66,184.63,5.67067547]
[1755782099613,17.30193946,184.68,184.64,4.99067547]
[1755782099816,3.64634545,184.67,184.64,4.99067547]
[1755782100121,13.59559401,184.66,184.62,84.82067547]
[1755782100282,3.64634545,184.65,184.62,80.51]
[1755782100910,18.58626948,184.63,184.62,0.03]
[1755782101108,22.23261493,184.63,184.62,0.03]
[1755782101313,22.95261493,184.63,184.62,0.03]
[1755782102514,65.31261493,184.63,184.62,0.03]
[1755782102678,99.92127397,184.63,184.62,0.03]
[1755782102883,26.0,184.61,184.6,0.1]
[1755782103079,48.23261493,184.61,184.6,0.1]
[1755782103391,48.95261493,184.61,184.6,0.1]
[1755782106507,91.31261493,184.61,184.6,0.1]
[1755782106696,105.77197842,184.61,184.59,0.1]
[1755782106901,31.99515377,184.6,184.59,0.1]
[1755782107292,37.41227186,184.6,184.59,0.1]
[1755782107922,39.59559401,184.57,184.56,0.03]
[1755782108217,39.59559401,184.57,184.55,0.1]
[1755782108218,13.59559401,184.56,184.55,0.1]
[1755782108410,31.56244517,184.56,184.55,0.1]
[1755782108728,27.00440372,184.56,184.53,0.1]
[1755782108893,69.36440372,184.55,184.53,0.1]
[1755782109213,39.59559401,184.54,184.53,0.1]
[1755782109509,13.59559401,184.5,184.46,0.68]
[1755782109720,4.99067547,184.47,184.46,0.68]
[1755782110394,4.99067547,184.48,184.46,0.68]
[1755782110712,18.58626948,184.51,184.46,5.67067547]
[1755782110896,4.99067547,184.49,184.47,0.68]
[1755782111097,4.99067547,184.48,184.43,5.09067547]
[1755782111291,4.99067547,184.48,184.44,0.68]
[1755782112409,4.99067547,184.47,184.45,0.68]
[1755782113206,4.99067547,184.46,184.43,0.78]
[1755782113411,4.99067547,184.46,184.44,0.68]
[1755782114032,4.99067547,184.45,184.44,0.68]
[1755782114193,4.99067547,184.46,184.44,0.68]
[1755782114705,26.0,184.53,184.45,5.67067547]
[1755782114911,13.59559401,184.51,184.47,4.99067547]
[1755782115112,18.58626948,184.51,184.48,0.68]
[1755782115411,13.59559401,184.52,184.49,5.67067547]
[1755782115610,13.59559401,184.52,184.5,0.68]
[1755782115814,42.38,184.54,184.49,4.99067547]
[1755782116010,42.38,184.54,184.51,5.67067547]
[1755782116204,42.38,184.54,184.52,0.68]
[1755782116515,4.99067547,184.55,184.48,26.0]
[1755782116836,4.99067547,184.55,184.5,4.99067547]
[1755782117000,0.7,184.6,184.53,4.99067547]
[1755782117207,13.59559401,184.59,184.55,4.99067547]
[1755782117509,42.38,184.6,184.56,5.67067547]
[1755782117716,42.38,184.6,184.57,0.68]
[1755782118025,4.99067547,184.62,184.58,0.68]
[1755782118026,13.59559401,184.61,184.58,0.68]
[1755782118346,13.59559401,184.62,184.59,0.68]
[1755782118507,13.59559401,184.62,184.6,0.68]
[1755782119324,13.59559401,184.6,184.53,4.99067547]
[1755782119628,4.99067547,184.58,184.53,26.68]
[1755782119834,4.99067547,184.58,184.54,0.68]
[1755782120004,4.99067547,184.57,184.54,0.68]
[1755782120323,4.99067547,184.56,184.51,5.67067547]
[1755782120522,4.99067547,184.55,184.51,0.68]
[1755782120714,13.59559401,184.56,184.51,0.68]
[1755782120921,4.99067547,184.55,184.51,0.68]
[1755782121512,4.99067547,184.54,184.49,31.67067547]
[1755782121832,4.99067547,184.53,184.5,0.68]
[1755782122015,4.99067547,184.55,184.51,0.68]
[1755782122210,0.7,184.58,184.52,0.68]
[1755782122416,8.15632679,184.56,184.52,0.68]
[1755782122615,8.15632679,184.56,184.53,0.68]
[1755782122814,8.15632679,184.55,184.49,26.68]
[1755782123116,8.15632679,184.55,184.5,8.83632679]
[1755782123317,8.15632679,184.55,184.51,0.68]
[1755782123527,8.15632679,184.55,184.52,0.68]
[1755782123708,8.15632679,184.55,184.5,0.68]
[1755782123916,13.59559401,184.57,184.52,8.15632679]
[1755782124141,21.7519208,184.57,184.53,0.68]
[1755782124324,8.15632679,184.56,184.53,0.68]
[1755782124646,8.21632679,184.56,184.54,0.68]
[1755782124821,8.21632679,184.56,184.51,8.18632679]
[1755782125126,8.15632679,184.54,184.51,0.03]
[1755782125632,8.15632679,184.54,184.51,0.71]
[1755782125933,8.15632679,184.54,184.51,0.03]
[1755782126432,8.15632679,184.54,184.51,0.71]
[1755782126647,8.15632679,184.54,184.51,0.03]
[1755782126854,8.15632679,184.52,184.51,0.03]
[1755782127038,42.36,184.54,184.51,0.03]
[1755782127214,8.15632679,184.53,184.51,0.03]
[1755782127410,8.15632679,184.52,184.51,0.03]
[1755782127611,21.7519208,184.53,184.51,0.03]
[1755782127822,13.59559401,184.53,184.51,0.71]
[1755782128016,42.36,184.54,184.52,0.68]
[1755782128264,21.8119208,184.56,184.52,0.68]
[1755782128742,8.85632679,184.55,184.51,0.03]
[1755782128926,8.15632679,184.54,184.51,0.03]
[1755782129321,8.85632679,184.55,184.51,0.03]
[1755782131241,8.15632679,184.55,184.51,0.03]
[1755782131446,8.85632679,184.55,184.51,0.03]
[1755782131862,0.06,184.56,184.53,8.15632679]
[1755782132060,0.06,184.56,184.54,0.68]
[1755782132363,0.06,184.56,184.54,8.15632679]
[1755782132664,0.06,184.56,184.55,8.83632679]
[1755782134576,0.06,184.56,184.55,0.68]
[1755782134779,0.06,184.56,184.55,8.83632679]
[1755782136273,0.06,184.56,184.55,120.05491253]
[1755782140770,0.06,184.6,184.58,79.74]
[1755782140968,0.06,184.6,184.59,8.15632679]
[1755782141170,0.06,184.6,184.59,8.83632679]
[1755782141886,0.06,184.6,184.59,8.15632679]
[1755782143582,0.06,184.6,184.58,122.1]
[1755782143785,0.06,184.6,184.59,8.15632679]
[1755782144369,0.06,184.6,184.59,5.00086317]
[1755782144759,0.06,184.6,184.59,5.68086317]
[1755782144964,0.06,184.6,184.59,10.68172634]
[1755782145166,0.06,184.6,184.59,16.0991379]
[1755782145871,0.06,184.63,184.62,79.68]
[1755782146184,0.06,184.63,184.62,127.02086317]
[1755782146383,0.06,184.63,184.62,127.70086317]
[1755782146967,0.06,184.63,184.62,127.02086317]
[1755782147175,0.06,184.63,184.62,122.02]
[1755782147381,0.75,184.63,184.62,122.02]
[1755782148085,0.75,184.63,184.62,127.02086317]
[1755782148465,0.75,184.63,184.62,84.68086317]
[1755782148686,0.75,184.63,184.62,127.02086317]
[1755782150188,0.75,184.63,184.62,84.68086317]
[1755782150490,0.75,184.63,184.62,127.02086317]
[1755782150788,0.75,184.63,184.59,42.34]
[1755782150969,5.75086317,184.63,184.59,42.34]
[1755782151170,5.06086317,184.63,184.59,42.34]
[1755782151391,5.69086317,184.62,184.58,122.02]
[1755782151689,0.69,184.61,184.58,122.02]
[1755782151878,0.69,184.61,184.58,79.68]
[1755782152077,0.06,184.63,184.6,5.00086317]
[1755782152470,0.75,184.63,184.6,5.00086317]
[1755782152670,0.69,184.62,184.59,47.34086317]
[1755782154290,0.06,184.63,184.59,47.34086317]
[1755782154496,0.69,184.62,184.59,47.34086317]
[1755782154795,0.69,184.62,184.58,79.68]
[1755782154796,0.69,184.61,184.58,79.68]
[1755782154979,0.69,184.6,184.58,79.68]
[1755782155183,0.69,184.59,184.58,79.68]
[1755782155581,5.69086317,184.59,184.56,42.34]
[1755782155876,0.69,184.58,184.54,31.00086317]
[1755782156081,0.69,184.58,184.55,42.34]
[1755782156577,0.69,184.58,184.54,26.0]
[1755782156784,5.00086317,184.59,184.54,26.0]
[1755782156785,0.69,184.57,184.55,42.34]
[1755782157097,5.00086317,184.59,184.55,42.34]
[1755782157291,5.00086317,184.57,184.55,42.34]
[1755782157469,5.00086317,184.59,184.55,43.03]
[1755782157671,14.28559401,184.61,184.56,0.69]
[1755782157877,19.28645718,184.61,184.56,5.69086317]
[1755782158272,5.00086317,184.62,184.57,5.69086317]
[1755782158483,5.00086317,184.62,184.58,0.69]
[1755782158680,0.69,184.61,184.57,47.34086317]
[1755782159092,0.69,184.6,184.57,42.34]
[1755782159390,5.69086317,184.6,184.55,47.34086317]
[1755782159575,5.69086317,184.6,184.55,48.03086317]
[1755782159774,5.69086317,184.6,184.56,0.03]
[1755782160093,5.69086317,184.59,184.56,0.03]
[1755782160296,5.00086317,184.58,184.56,0.03]
[1755782160497,18.59645718,184.57,184.56,0.03]
[1755782160703,19.28645718,184.57,184.56,0.03]
[1755782161170,22.91995045,184.57,184.56,0.03]
[1755782162586,17.91908728,184.57,184.56,0.03]
[1755782162786,22.91995045,184.57,184.56,0.03]
[1755782165781,25.74700452,184.57,184.56,0.03]
[1755782166783,51.74700452,184.57,184.56,0.03]
[1755782166985,25.74700452,184.57,184.56,0.03]
[1755782167489,35.61998818,184.57,184.56,0.03]
[1755782167686,39.59559401,184.55,184.54,0.03]
[1755782168022,64.56995045,184.55,184.54,0.03]
[1755782168319,39.59559401,184.53,184.52,0.03]
[1755782168479,48.22995045,184.53,184.52,0.03]
[1755782168683,48.91995045,184.53,184.52,0.03]
[1755782168885,27.92081362,184.53,184.51,0.03]
[1755782169094,23.59732035,184.5,184.47,0.03]
[1755782169297,69.57081362,184.5,184.47,0.03]
[1755782169600,70.26081362,184.5,184.47,0.03]
[1755782175129,5.00086317,184.52,184.5,0.69]
[1755782176140,5.00086317,184.52,184.49,0.03]
[1755782176337,5.00086317,184.52,184.49,0.72]
[1755782176496,5.00086317,184.52,184.5,0.69]
[1755782177445,5.71086317,184.51,184.49,0.03]
[1755782177656,18.59645718,184.5,184.49,0.03]
[1755782178141,19.30645718,184.5,184.49,0.03]
[1755782181947,24.30732035,184.5,184.49,0.03]
[1755782182135,29.72737455,184.5,184.49,0.03]
[1755782182342,24.30732035,184.5,184.49,0.03]
[1755782182536,60.93645718,184.5,184.49,0.03]
[1755782183836,60.93645718,184.5,184.49,0.7]
[1755782184057,13.59559401,184.5,184.49,0.7]
[1755782184656,5.00086317,184.51,184.49,0.7]
[1755782185461,13.59559401,184.51,184.49,0.7]
[1755782185641,18.59645718,184.51,184.49,0.7]
[1755782186034,21.42392151,184.51,184.49,0.7]
[1755782187233,21.42392151,184.51,184.49,0.03]
[1755782187463,5.00086317,184.5,184.49,0.03]
[1755782187937,16.42305834,184.51,184.49,0.7]
[1755782188871,21.42392151,184.51,184.49,0.7]
[1755782189466,16.42305834,184.51,184.49,0.03]
[1755782189754,16.42305834,184.51,184.49,0.7]
[1755782189943,21.42392151,184.51,184.49,0.03]
[1755782191866,21.42392151,184.51,184.5,0.67]
[1755782192074,21.42392151,184.51,184.49,0.03]
[1755782192075,16.42305834,184.51,184.49,0.03]
[1755782192362,21.42392151,184.51,184.49,0.03]
[1755782192548,61.64645718,184.5,184.49,0.03]
[1755782192743,60.93645718,184.5,184.49,0.03]
[1755782193152,55.93559401,184.5,184.49,0.03]
[1755782193365,60.93645718,184.5,184.49,0.03]
[1755782194252,18.59645718,184.5,184.49,0.03]
[1755782194459,19.30645718,184.5,184.49,0.03]
[1755782195569,18.59645718,184.5,184.49,0.03]
[1755782196149,22.9308424,184.5,184.49,0.03]
[1755782196349,22.2208424,184.5,184.49,0.03]
[1755782197453,22.9308424,184.5,184.49,0.03]
[1755782197862,27.93170557,184.5,184.49,0.03]
[1755782198055,70.27170557,184.5,184.49,0.03]
[1755782198739,22.2208424,184.5,184.49,0.03]
[1755782198944,64.5608424,184.5,184.49,0.03]
[1755782200572,65.2708424,184.5,184.49,0.03]
[1755782200735,59.55997923,184.5,184.49,0.03]
[1755782201248,64.5608424,184.5,184.49,0.03]
[1755782202668,3.62438522,184.5,184.49,0.7]
[1755782202972,0.06,184.52,184.49,5.70086317]
[1755782203151,0.06,184.52,184.51,5.00086317]
[1755782203557,0.06,184.52,184.51,5.67086317]
[1755782206174,0.06,184.52,184.51,5.67086317]
[1755782206347,0.06,184.52,184.49,0.03]
[1755782206725,0.06,184.52,184.51,0.67]
[1755782206918,0.06,184.52,184.51,5.67086317]
[1755782210737,0.06,184.52,184.51,5.70086317]
[1755782210933,0.06,184.52,184.51,0.03]
[1755782212205,0.71,184.52,184.51,0.03]
[1755782212406,0.06,184.52,184.51,0.03]
[1755782213234,0.06,184.52,184.51,0.73]
[1755782213622,0.06,184.52,184.51,85.41086317]
[1755782219218,0.06,184.52,184.51,84.71086317]
[1755782219432,0.06,184.52,184.51,85.41086317]
[1755782219921,0.06,184.52,184.51,79.71]
[1755782220122,0.06,184.52,184.51,84.71086317]
[1755782220430,0.06,184.52,184.51,79.71]
[1755782220633,0.06,184.52,184.51,85.41086317]
[1755782221220,0.06,184.52,184.51,79.71]
[1755782221554,5.71086317,184.52,184.51,0.03]
[1755782222219,5.06086317,184.52,184.51,0.03]
[1755782222520,0.06,184.52,184.51,0.03]
[1755782222721,0.06,184.52,184.51,0.73]
[1755782222912,0.06,184.52,184.51,0.03]
[1755782225830,0.06,184.52,184.51,5.73086317]
[1755782226031,0.06,184.52,184.51,85.41086317]
[1755782229656,0.06,184.52,184.51,90.83062361]
[1755782231164,0.06,184.52,184.51,121.23819366]
[1755782231347,0.06,184.52,184.51,120.69621762]
[1755782232761,0.06,184.52,184.51,133.15062361]
[1755782233131,0.06,184.52,184.51,90.83062361]
[1755782233354,0.06,184.52,184.51,127.73086317]
[1755782234448,0.06,184.52,184.51,84.71086317]
[1755782234738,0.06,184.52,184.51,127.03086317]
[1755782236145,0.06,184.52,184.51,122.03]
[1755782236350,0.06,184.52,184.51,127.03086317]
[1755782237562,0.06,184.52,184.51,84.71086317]
[1755782237751,0.06,184.52,184.51,127.01086317]
[1755782237947,0.06,184.52,184.51,122.01]
[1755782239186,0.72,184.52,184.51,79.71]
[1755782239348,0.72,184.52,184.51,122.01]
[1755782239869,0.06,184.52,184.51,79.71]
[1755782240587,0.72,184.52,184.51,79.71]
[1755782242270,0.06,184.52,184.51,79.71]
[1755782242883,0.06,184.52,184.51,85.39086317]
[1755782243983,0.72,184.52,184.51,122.01]
[1755782244479,0.06,184.52,184.51,122.69]
[1755782244683,0.06,184.52,184.51,127.69086317]
[1755782247188,0.06,184.52,184.51,122.69]
[1755782247380,0.72,184.52,184.51,79.71]
[1755782247771,5.72086317,184.52,184.51,79.71]
[1755782248466,0.72,184.52,184.51,79.71]
[1755782248789,0.72,184.52,184.51,0.03]
[1755782249181,9.37413133,184.52,184.51,0.03]
[1755782249376,5.72086317,184.52,184.51,0.03]
[1755782249571,9.37413133,184.52,184.51,0.03]
[1755782249893,5.72086317,184.52,184.51,0.03]
[1755782250196,4.37326816,184.52,184.51,0.03]
[1755782250770,9.37413133,184.52,184.51,0.03]
[1755782251466,22.96972534,184.52,184.51,0.03]
[1755782251999,25.79736318,184.52,184.51,0.03]
[1755782252666,29.85053342,184.52,184.51,0.03]
[1755782253065,25.79736318,184.52,184.51,0.03]
[1755782253576,6.540906,184.52,184.51,0.03]
[1755782253893,8.71413133,184.52,184.51,0.03]
[1755782255270,9.37413133,184.52,184.51,0.03]
[1755782257378,48.96972534,184.52,184.51,0.03]
[1755782258084,53.01805653,184.52,184.51,0.03]
[1755782258283,48.96972534,184.52,184.51,0.03]
[1755782260098,48.30972534,184.52,184.51,0.03]
[1755782260293,8.71413133,184.52,184.51,0.03]
[1755782260899,22.96972534,184.52,184.51,0.03]
[1755782261087,22.30972534,184.52,184.51,0.03]
[1755782263177,22.96972534,184.52,184.51,0.03]
[1755782264879,22.30972534,184.52,184.51,0.03]
[1755782267611,22.97972534,184.52,184.51,0.03]
[1755782267810,22.97972534,184.52,184.47,80.06]
[1755782267983,5.00086317,184.49,184.47,79.39]
[1755782268315,5.00086317,184.49,184.47,80.06]
[1755782268794,5.00086317,184.49,184.47,80.09]
[1755782268998,3.65326816,184.51,184.47,80.09]
[1755782269224,5.00086317,184.48,184.47,80.09]
[1755782270095,5.00086317,184.49,184.47,80.09]
[1755782270292,3.65326816,184.51,184.48,0.67]
[1755782270510,5.00086317,184.5,184.48,0.67]
[1755782270699,5.00086317,184.5,184.49,0.67]
[1755782271103,5.67086317,184.5,184.47,79.42]
[1755782271322,5.00086317,184.49,184.47,80.09]
[1755782271491,5.00086317,184.49,184.48,0.67]
[1755782273221,3.65326816,184.51,184.47,79.42]
[1755782273405,5.00086317,184.49,184.47,80.09]
[1755782273608,5.00086317,184.49,184.48,0.67]
[1755782273800,3.65326816,184.51,184.48,80.06]
[1755782273992,5.00086317,184.49,184.48,80.06]
[1755782274321,5.00086317,184.5,184.48,80.06]
[1755782275208,5.00086317,184.5,184.49,0.67]
[1755782275722,3.65326816,184.51,184.5,26.0]
[1755782275901,0.06,184.52,184.51,26.0]
[1755782276102,0.06,184.52,184.5,5.00086317]
[1755782276302,0.06,184.52,184.51,5.67086317]
[1755782279239,0.06,184.52,184.51,0.67]
[1755782279738,0.06,184.52,184.51,5.67086317]
[1755782281534,0.06,184.52,184.51,90.48062361]
[1755782281704,0.06,184.52,184.51,116.48062361]
[1755782281902,0.06,184.52,184.51,40.72790561]
[1755782282103,0.06,184.52,184.51,41.26988165]
[1755782282317,0.06,184.52,184.51,77.60814517]
[1755782282507,0.06,184.52,184.51,73.97086317]
[1755782283328,0.06,184.52,184.5,86.9819981]
[1755782283329,0.06,184.52,184.5,79.39]
[1755782283535,0.06,184.52,184.51,42.3]
[1755782284239,0.06,184.52,184.51,42.97]
[1755782284411,0.06,184.52,184.51,42.3]
[1755782285830,0.06,184.52,184.47,105.42]
[1755782286035,5.73086317,184.52,184.48,42.28]
[1755782286222,0.06,184.52,184.48,42.28]
[1755782286542,0.06,184.52,184.49,0.67]
[1755782287242,0.06,184.52,184.5,47.95086317]
[1755782287543,0.06,184.52,184.5,42.28]
[1755782287841,0.06,184.52,184.51,0.67]
[1755782288217,0.06,184.52,184.51,5.67086317]
[1755782288922,0.06,184.52,184.51,85.06086317]
[1755782289222,0.06,184.52,184.51,116.48062361]
[1755782290328,0.06,184.52,184.51,37.09062361]
[1755782290822,0.06,184.52,184.51,237.32819366]
[1755782291032,0.06,184.52,184.51,236.78621762]
[1755782291641,0.06,184.52,184.51,253.08621762]
[1755782291948,0.06,184.56,184.54,79.74]
[1755782292251,0.06,184.56,184.55,73.28086317]
[1755782292568,0.06,184.56,184.55,76.12223917]
[1755782293233,0.06,184.56,184.55,81.54082491]
[1755782293426,0.06,184.56,184.55,76.12223917]
[1755782293635,0.06,184.56,184.55,81.54082491]
[1755782294450,0.06,184.56,184.55,55.54082491]
[1755782294655,0.06,184.56,184.55,281.71827749]